[Event "*** Titled Tuesday Blitz"]
[Site "Chess.com"]
[Date "2018.01.02"]
[Round "6"]
[White "Kirill_Klukin"]
[Black "asms9699"]
[Result "0-1"]
[WhiteElo "2460"]
[BlackElo "2505"]
[TimeControl "180+2"]
[EndTime "14:21:13 PST"]
[Termination "asms9699 won by resignation"]

1. Nf3 {[%clk 0:03:01.9]} 1... d5 {[%clk 0:03:00.8]} 2. c4 {[%clk 0:03:03]} 2...
c6 {[%clk 0:03:01.1]} 3. e3 {[%clk 0:03:03.5]} 3... Nf6 {[%clk 0:03:02]} 4. b3
{[%clk 0:03:04.9]} 4... g6 {[%clk 0:03:02.4]} 5. Bb2 {[%clk 0:03:06.3]} 5... Bg7
{[%clk 0:03:03.9]} 6. Be2 {[%clk 0:03:07.8]} 6... O-O {[%clk 0:03:05.1]} 7. O-O
{[%clk 0:03:09.3]} 7... Bg4 {[%clk 0:03:05.9]} 8. d4 {[%clk 0:03:05.9]} 8...
Nbd7 {[%clk 0:02:56.6]} 9. Nbd2 {[%clk 0:03:07.2]} 9... e6 {[%clk 0:02:56.2]}
10. Ne5 {[%clk 0:03:07.1]} 10... Bxe2 {[%clk 0:02:56.3]} 11. Qxe2 {[%clk
0:03:08.3]} 11... Nxe5 {[%clk 0:02:49.5]} 12. dxe5 {[%clk 0:03:10.2]} 12... Ne4
{[%clk 0:02:48]} 13. Nxe4 {[%clk 0:03:10.7]} 13... dxe4 {[%clk 0:02:49.9]} 14.
Rfd1 {[%clk 0:03:11.7]} 14... Qa5 {[%clk 0:02:49.7]} 15. Rd7 {[%clk 0:02:38.5]}
15... Bxe5 {[%clk 0:02:45.5]} 16. Rxb7 {[%clk 0:02:25.7]} 16... Bxb2 {[%clk
0:02:35.2]} 17. Qxb2 {[%clk 0:02:27.6]} 17... Rad8 {[%clk 0:02:35.1]} 18. h4
{[%clk 0:01:56.8]} 18... Rd2 {[%clk 0:02:17.6]} 19. Qf6 {[%clk 0:01:56]} 19...
Rxa2 {[%clk 0:02:02.1]} 20. Rd1 {[%clk 0:01:47.5]} 20... Rd2 {[%clk 0:02:01.5]}
21. Rxd2 {[%clk 0:01:21.6]} 21... Qxd2 {[%clk 0:02:03.4]} 22. Rxa7 {[%clk
0:01:18.5]} 22... Qd1+ {[%clk 0:02:02.4]} 23. Kh2 {[%clk 0:01:19.2]} 23... Qxb3
{[%clk 0:01:59.9]} 24. h5 {[%clk 0:01:15.4]} 24... Qd1 {[%clk 0:01:40.1]} 25. f3
{[%clk 0:00:57.3]} 25... Qd8 {[%clk 0:01:17.8]} 26. Re7 {[%clk 0:00:39.5]} 26...
gxh5 {[%clk 0:01:08.5]} 27. Qg5+ {[%clk 0:00:40.3]} 27... Kh8 {[%clk 0:01:08.2]}
28. Qf6+ {[%clk 0:00:41.4]} 28... Kg8 {[%clk 0:01:08.9]} 29. fxe4 {[%clk
0:00:37.5]} 29... Qd6+ {[%clk 0:01:01.9]} 30. e5 {[%clk 0:00:37.3]} 30... Qd3
{[%clk 0:01:02.4]} 31. Qg5+ {[%clk 0:00:31.4]} 31... Qg6 {[%clk 0:01:03.1]} 32.
Qxg6+ {[%clk 0:00:29.7]} 32... hxg6 {[%clk 0:01:05]} 33. Rc7 {[%clk 0:00:30.7]}
33... Rd8 {[%clk 0:01:06.3]} 34. Rxc6 {[%clk 0:00:31.5]} 34... Rd3 {[%clk
0:01:04.7]} 35. Kg3 {[%clk 0:00:27.2]} 35... Rxe3+ {[%clk 0:01:05.7]} 36. Kf4
{[%clk 0:00:28.4]} 36... Rc3 {[%clk 0:01:06.5]} 37. g4 {[%clk 0:00:27.5]} 37...
h4 {[%clk 0:01:00.1]} 38. Kg5 {[%clk 0:00:28.2]} 38... h3 {[%clk 0:00:52.8]} 39.
Kh6 {[%clk 0:00:27.3]} 39... Kf8 {[%clk 0:00:53.5]} 40. Rc8+ {[%clk 0:00:27.4]}
40... Ke7 {[%clk 0:00:54.3]} 41. Rh8 {[%clk 0:00:28.3]} 41... Rxc4 {[%clk
0:00:49.6]} 42. Kg7 {[%clk 0:00:14.4]} 42... Rxg4 {[%clk 0:00:37.1]} 43. Rxh3
{[%clk 0:00:14.8]} 43... Rf4 {[%clk 0:00:26.2]} 44. Ra3 {[%clk 0:00:14.9]} 44...
Kd7 {[%clk 0:00:27.1]} 45. Ra7+ {[%clk 0:00:15.5]} 45... Kc6 {[%clk 0:00:27.4]}
46. Kh6 {[%clk 0:00:08.9]} 46... Kd5 {[%clk 0:00:25.5]} 47. Ra5+ {[%clk
0:00:10.3]} 47... Ke4 {[%clk 0:00:25.9]} 48. Kg7 {[%clk 0:00:10.6]} 48... g5
{[%clk 0:00:23.3]} 0-1

[Event "*** Titled Tuesday Blitz"]
[Site "Chess.com"]
[Date "2018.01.02"]
[Round "6"]
[White "attack2mateU"]
[Black "Vrolijk"]
[Result "1-0"]
[WhiteElo "2612"]
[BlackElo "2431"]
[TimeControl "180+2"]
[EndTime "14:21:15 PST"]
[Termination "attack2mateU won by checkmate"]

1. e4 {[%clk 0:03:01.5]} 1... e5 {[%clk 0:02:51.2]} 2. Nf3 {[%clk 0:03:01.7]}
2... Nc6 {[%clk 0:02:52.5]} 3. d4 {[%clk 0:03:03.3]} 3... exd4 {[%clk
0:02:52.5]} 4. Nxd4 {[%clk 0:03:05.2]} 4... Bc5 {[%clk 0:02:53.4]} 5. Nb3 {[%clk
0:03:05.2]} 5... Bb6 {[%clk 0:02:54.2]} 6. Nc3 {[%clk 0:03:05.8]} 6... Nf6
{[%clk 0:02:54.5]} 7. Bg5 {[%clk 0:03:06.8]} 7... a5 {[%clk 0:02:54.6]} 8. Bb5
{[%clk 0:03:02.4]} 8... h6 {[%clk 0:02:26.6]} 9. Bh4 {[%clk 0:03:02.9]} 9... O-O
{[%clk 0:02:26.4]} 10. O-O {[%clk 0:02:58.6]} 10... d6 {[%clk 0:02:15.6]} 11.
Bxc6 {[%clk 0:02:10.2]} 11... bxc6 {[%clk 0:02:09.5]} 12. Nd4 {[%clk 0:02:11.8]}
12... Bd7 {[%clk 0:02:03.7]} 13. Qd3 {[%clk 0:02:08.5]} 13... Qe7 {[%clk
0:01:58.5]} 14. Rfe1 {[%clk 0:02:08.6]} 14... Qe5 {[%clk 0:01:41.3]} 15. Nf3
{[%clk 0:01:59.8]} 15... Qf4 {[%clk 0:01:37.4]} 16. h3 {[%clk 0:01:44.3]} 16...
g5 {[%clk 0:01:36.5]} 17. g3 {[%clk 0:01:38.6]} 17... Bxf2+ {[%clk 0:01:05.2]}
18. Kxf2 {[%clk 0:01:37.5]} 18... Ng4+ {[%clk 0:01:06.6]} 19. hxg4 {[%clk
0:01:37.2]} 19... Qxg4 {[%clk 0:01:08.5]} 20. Rg1 {[%clk 0:01:13.2]} 20... Be6
{[%clk 0:00:58.9]} 21. Nd1 {[%clk 0:01:07.9]} 21... f5 {[%clk 0:00:57.8]} 22.
Ne3 {[%clk 0:01:03.8]} 22... Qxe4 {[%clk 0:00:58]} 23. Nxg5 {[%clk 0:00:54.4]}
23... hxg5 {[%clk 0:00:55]} 24. Bxg5 {[%clk 0:00:56.3]} 24... Qe5 {[%clk
0:00:54.3]} 25. b3 {[%clk 0:00:47.9]} 25... a4 {[%clk 0:00:47.9]} 26. Bf4 {[%clk
0:00:47.1]} 26... Qb2 {[%clk 0:00:44.2]} 27. Nc4 {[%clk 0:00:46.1]} 27... Qg7
{[%clk 0:00:43]} 28. Rae1 {[%clk 0:00:44.3]} 28... Bd5 {[%clk 0:00:43.5]} 29.
Nd2 {[%clk 0:00:40.3]} 29... axb3 {[%clk 0:00:42.4]} 30. axb3 {[%clk 0:00:42.2]}
30... Rae8 {[%clk 0:00:39.6]} 31. Rxe8 {[%clk 0:00:36.4]} 31... Rxe8 {[%clk
0:00:41.5]} 32. Re1 {[%clk 0:00:37.3]} 32... Rf8 {[%clk 0:00:38.4]} 33. c4
{[%clk 0:00:35.2]} 33... Qh7 {[%clk 0:00:29]} 34. cxd5 {[%clk 0:00:26.8]} 34...
Qh2+ {[%clk 0:00:28.5]} 35. Kf1 {[%clk 0:00:28.1]} 35... Qh3+ {[%clk 0:00:23.8]}
36. Ke2 {[%clk 0:00:29]} 36... Re8+ {[%clk 0:00:18.6]} 37. Kd1 {[%clk
0:00:28.7]} 37... Qg4+ {[%clk 0:00:19.3]} 38. Qf3 {[%clk 0:00:29.7]} 38... Rxe1+
{[%clk 0:00:20]} 39. Kxe1 {[%clk 0:00:30.9]} 39... Qg7 {[%clk 0:00:21.9]} 40.
dxc6 {[%clk 0:00:30.4]} 40... Qa1+ {[%clk 0:00:23.8]} 41. Ke2 {[%clk 0:00:31.5]}
41... Qd4 {[%clk 0:00:25.3]} 42. Qe3 {[%clk 0:00:29.7]} 42... Qd5 {[%clk
0:00:25.4]} 43. Qe8+ {[%clk 0:00:30.2]} 43... Kg7 {[%clk 0:00:26.9]} 44. Qe7+
{[%clk 0:00:29.3]} 44... Kg6 {[%clk 0:00:28.3]} 45. Qxc7 {[%clk 0:00:28]} 45...
Qg2+ {[%clk 0:00:27.8]} 46. Kd1 {[%clk 0:00:27.5]} 46... Qg1+ {[%clk 0:00:29]}
47. Kc2 {[%clk 0:00:27.1]} 47... Qc5+ {[%clk 0:00:30.6]} 48. Kb1 {[%clk
0:00:28.1]} 48... Qg1+ {[%clk 0:00:26.1]} 49. Ka2 {[%clk 0:00:26.3]} 49... Qd1
{[%clk 0:00:27]} 50. Qxd6+ {[%clk 0:00:24.1]} 50... Kh5 {[%clk 0:00:28.3]} 51.
Qc5 {[%clk 0:00:23.6]} 51... Kg4 {[%clk 0:00:30.2]} 52. c7 {[%clk 0:00:24]}
52... Qh1 {[%clk 0:00:19.2]} 53. c8=Q {[%clk 0:00:23.3]} 53... Qh8 {[%clk
0:00:21.1]} 54. Q5xf5# {[%clk 0:00:21.9]} 1-0

[Event "*** Titled Tuesday Blitz"]
[Site "Chess.com"]
[Date "2018.01.02"]
[Round "6"]
[White "TheBigBoss04"]
[Black "catalin009"]
[Result "1-0"]
[WhiteElo "2483"]
[BlackElo "2351"]
[TimeControl "180+2"]
[EndTime "14:21:27 PST"]
[Termination "TheBigBoss04 won by resignation"]

1. Nf3 {[%clk 0:03:01.9]} 1... Nf6 {[%clk 0:02:59.7]} 2. d4 {[%clk 0:03:03]}
2... e6 {[%clk 0:03:00.5]} 3. Bf4 {[%clk 0:03:04]} 3... b6 {[%clk 0:03:00.4]} 4.
e3 {[%clk 0:03:04.4]} 4... Bb7 {[%clk 0:03:01.4]} 5. Be2 {[%clk 0:03:05.8]} 5...
c5 {[%clk 0:03:01.1]} 6. c3 {[%clk 0:03:03.8]} 6... Be7 {[%clk 0:03:01.6]} 7. h3
{[%clk 0:03:04.3]} 7... O-O {[%clk 0:03:01.4]} 8. O-O {[%clk 0:03:05.6]} 8...
cxd4 {[%clk 0:03:01.4]} 9. exd4 {[%clk 0:03:04.9]} 9... d6 {[%clk 0:03:01.5]}
10. a4 {[%clk 0:03:04.7]} 10... a6 {[%clk 0:03:00.8]} 11. Bh2 {[%clk 0:03:05.4]}
11... Nbd7 {[%clk 0:03:01.3]} 12. Nbd2 {[%clk 0:03:00.6]} 12... Re8 {[%clk
0:02:57.7]} 13. Qb3 {[%clk 0:02:22]} 13... Rb8 {[%clk 0:02:23.4]} 14. Rfd1
{[%clk 0:02:16.2]} 14... Qc7 {[%clk 0:02:21.5]} 15. Bd3 {[%clk 0:01:54.4]} 15...
Bf8 {[%clk 0:02:04]} 16. Qc4 {[%clk 0:01:54.3]} 16... Qxc4 {[%clk 0:01:30.1]}
17. Nxc4 {[%clk 0:01:54.9]} 17... Bxf3 {[%clk 0:01:31.2]} 18. gxf3 {[%clk
0:01:55]} 18... d5 {[%clk 0:01:32.4]} 19. Ne5 {[%clk 0:01:46.9]} 19... Ra8
{[%clk 0:01:26.3]} 20. f4 {[%clk 0:01:31.8]} 20... g6 {[%clk 0:01:21.7]} 21. Re1
{[%clk 0:01:23.8]} 21... Bh6 {[%clk 0:01:18.1]} 22. Kg2 {[%clk 0:01:16.6]} 22...
Kf8 {[%clk 0:01:08.9]} 23. Kf3 {[%clk 0:01:14.9]} 23... Bg7 {[%clk 0:00:43.2]}
24. Ra3 {[%clk 0:01:09]} 24... Rec8 {[%clk 0:00:41.9]} 25. Rb3 {[%clk
0:01:05.5]} 25... Ra7 {[%clk 0:00:24.5]} 26. Bg3 {[%clk 0:01:02.3]} 26... h5
{[%clk 0:00:23]} 27. Bh4 {[%clk 0:01:00.4]} 27... Nxe5+ {[%clk 0:00:06.3]} 28.
fxe5 {[%clk 0:01:00.5]} 28... Nd7 {[%clk 0:00:07.9]} 29. Ke2 {[%clk 0:00:56.5]}
29... Ke8 {[%clk 0:00:08.2]} 30. f4 {[%clk 0:00:56.5]} 30... Bh6 {[%clk
0:00:08.5]} 31. Bg5 {[%clk 0:00:56]} 31... Bf8 {[%clk 0:00:05.3]} 32. Kd2 {[%clk
0:00:53.6]} 32... Rb8 {[%clk 0:00:06.3]} 33. Rf1 {[%clk 0:00:50.3]} 33... Be7
{[%clk 0:00:07.3]} 34. h4 {[%clk 0:00:50.6]} 34... Bf8 {[%clk 0:00:04.7]} 35.
Ra1 {[%clk 0:00:47.8]} 35... Be7 {[%clk 0:00:05.4]} 36. Be2 {[%clk 0:00:45.9]}
36... Kd8 {[%clk 0:00:06.7]} 37. c4 {[%clk 0:00:46.3]} 37... dxc4 {[%clk
0:00:07.2]} 38. Bxc4 {[%clk 0:00:47.2]} 38... a5 {[%clk 0:00:08.8]} 39. Bb5
{[%clk 0:00:47.2]} 39... Ke8 {[%clk 0:00:08.5]} 40. Rc1 {[%clk 0:00:45.9]} 40...
Bb4+ {[%clk 0:00:09.1]} 41. Ke3 {[%clk 0:00:44.3]} 41... Be7 {[%clk 0:00:06.4]}
42. Rbc3 {[%clk 0:00:42.6]} 42... Bxg5 {[%clk 0:00:06.2]} 43. fxg5 {[%clk
0:00:42.7]} 43... Kd8 {[%clk 0:00:08.1]} 44. Ke4 {[%clk 0:00:38]} 44... Rab7
{[%clk 0:00:06.4]} 45. Ba6 {[%clk 0:00:33.9]} 45... Ra7 {[%clk 0:00:07.3]} 46.
Rc8+ {[%clk 0:00:35.3]} 46... Rxc8 {[%clk 0:00:08.6]} 47. Rxc8+ {[%clk 0:00:37]}
47... Ke7 {[%clk 0:00:09.7]} 48. Bb5 {[%clk 0:00:38.5]} 48... Rb7 {[%clk
0:00:10.5]} 49. Bc6 {[%clk 0:00:29.7]} 49... Ra7 {[%clk 0:00:10.8]} 50. Kf4
{[%clk 0:00:28]} 50... Ra6 {[%clk 0:00:05.1]} 51. Rc7 {[%clk 0:00:27.8]} 1-0

[Event "*** Titled Tuesday Blitz"]
[Site "Chess.com"]
[Date "2018.01.02"]
[Round "6"]
[White "BillCoe"]
[Black "Maili15"]
[Result "0-1"]
[WhiteElo "1924"]
[BlackElo "2297"]
[TimeControl "180+2"]
[EndTime "14:21:27 PST"]
[Termination "Maili15 won by resignation"]

1. e4 {[%clk 0:03:01.9]} 1... c5 {[%clk 0:03:00.7]} 2. Nf3 {[%clk 0:03:01.8]}
2... d6 {[%clk 0:03:01]} 3. d4 {[%clk 0:03:03.2]} 3... cxd4 {[%clk 0:03:02.9]}
4. Nxd4 {[%clk 0:03:05.1]} 4... Nf6 {[%clk 0:03:04.5]} 5. Nc3 {[%clk 0:03:05.9]}
5... a6 {[%clk 0:03:05.3]} 6. h3 {[%clk 0:03:05.6]} 6... e5 {[%clk 0:03:04.8]}
7. Nde2 {[%clk 0:03:06.2]} 7... Be6 {[%clk 0:03:06.2]} 8. g4 {[%clk 0:03:06.7]}
8... Be7 {[%clk 0:03:00.9]} 9. Ng3 {[%clk 0:03:07.2]} 9... b5 {[%clk 0:02:58.3]}
10. Bg2 {[%clk 0:03:06]} 10... Nc6 {[%clk 0:02:57.5]} 11. O-O {[%clk 0:03:02.4]}
11... O-O {[%clk 0:02:46.1]} 12. b3 {[%clk 0:03:02.1]} 12... Nd4 {[%clk
0:02:44.3]} 13. Nce2 {[%clk 0:02:55.3]} 13... Nxe2+ {[%clk 0:02:44.4]} 14. Qxe2
{[%clk 0:02:55.6]} 14... Rc8 {[%clk 0:02:45]} 15. Bb2 {[%clk 0:02:49.3]} 15...
Qc7 {[%clk 0:02:44.5]} 16. Rac1 {[%clk 0:02:49]} 16... Rfd8 {[%clk 0:02:45.7]}
17. Rfd1 {[%clk 0:02:47.5]} 17... Qa5 {[%clk 0:02:45.9]} 18. Ra1 {[%clk
0:02:35.5]} 18... Rc6 {[%clk 0:02:29]} 19. a4 {[%clk 0:02:34.9]} 19... b4 {[%clk
0:02:25.6]} 20. Nf5 {[%clk 0:02:25.7]} 20... Bf8 {[%clk 0:02:25.1]} 21. Ne3
{[%clk 0:02:20.2]} 21... Rdc8 {[%clk 0:02:22.9]} 22. Rd2 {[%clk 0:02:20.7]}
22... Qc7 {[%clk 0:02:01.6]} 23. Rad1 {[%clk 0:02:19.4]} 23... g6 {[%clk
0:01:38.7]} 24. f3 {[%clk 0:02:06.2]} 24... Bh6 {[%clk 0:01:36]} 25. Rc1 {[%clk
0:01:40.9]} 25... Qb6 {[%clk 0:01:20.2]} 26. Rd3 {[%clk 0:01:32.6]} 26... Bxe3+
{[%clk 0:01:10.8]} 27. Rxe3 {[%clk 0:01:17.1]} 27... Rxc2 {[%clk 0:01:09.3]} 28.
Rxc2 {[%clk 0:01:17.7]} 28... Rxc2 {[%clk 0:01:09.7]} 29. Qxc2 {[%clk
0:01:18.4]} 29... Qxe3+ {[%clk 0:01:10.5]} 30. Kh1 {[%clk 0:01:19.2]} 30... Qxb3
{[%clk 0:00:55.7]} 31. Qd2 {[%clk 0:01:17.3]} 31... Nd7 {[%clk 0:00:46.6]} 32.
Kh2 {[%clk 0:01:07.4]} 32... Nc5 {[%clk 0:00:25.1]} 33. h4 {[%clk 0:01:08.2]}
33... Nxa4 {[%clk 0:00:25.4]} 34. Bc1 {[%clk 0:01:05.2]} 34... Qc3 {[%clk
0:00:21.5]} 35. Qg5 {[%clk 0:00:53.3]} 35... Qc7 {[%clk 0:00:11.2]} 36. h5
{[%clk 0:00:50.6]} 36... Qc8 {[%clk 0:00:05.7]} 37. h6 {[%clk 0:00:46.3]} 37...
Qf8 {[%clk 0:00:05.9]} 38. Qd2 {[%clk 0:00:37.3]} 38... b3 {[%clk 0:00:06.7]}
39. Qb4 {[%clk 0:00:34.3]} 39... b2 {[%clk 0:00:06.8]} 40. Bxb2 {[%clk
0:00:34.8]} 40... Qxh6+ {[%clk 0:00:07.9]} 41. Kg3 {[%clk 0:00:35.4]} 41... Nxb2
{[%clk 0:00:09.2]} 42. Qxb2 {[%clk 0:00:35.7]} 42... Qf4+ {[%clk 0:00:10.1]} 43.
Kf2 {[%clk 0:00:34]} 43... h5 {[%clk 0:00:07.7]} 44. gxh5 {[%clk 0:00:33.1]}
44... gxh5 {[%clk 0:00:09.6]} 45. Qb8+ {[%clk 0:00:33.6]} 45... Kg7 {[%clk
0:00:10.7]} 46. Qxd6 {[%clk 0:00:34.9]} 46... h4 {[%clk 0:00:10.2]} 47. Qxa6
{[%clk 0:00:32]} 47... h3 {[%clk 0:00:10.9]} 48. Bf1 {[%clk 0:00:31.6]} 48... h2
{[%clk 0:00:11.6]} 49. Bg2 {[%clk 0:00:29.1]} 49... Qh4+ {[%clk 0:00:11]} 50.
Ke3 {[%clk 0:00:27.8]} 50... h1=Q {[%clk 0:00:12.9]} 51. Bxh1 {[%clk 0:00:27.4]}
51... Qxh1 {[%clk 0:00:14.8]} 52. Qd6 {[%clk 0:00:25.5]} 52... Qe1+ {[%clk
0:00:15]} 0-1

[Event "*** Titled Tuesday Blitz"]
[Site "Chess.com"]
[Date "2018.01.02"]
[Round "6"]
[White "Jbd735"]
[Black "aa175"]
[Result "1-0"]
[WhiteElo "2282"]
[BlackElo "1898"]
[TimeControl "180+2"]
[EndTime "14:21:32 PST"]
[Termination "Jbd735 won by checkmate"]

1. e4 {[%clk 0:03:01.9]} 1... e5 {[%clk 0:02:59.6]} 2. Nf3 {[%clk 0:03:02.5]}
2... Nc6 {[%clk 0:02:57.7]} 3. Bb5 {[%clk 0:03:03]} 3... Nge7 {[%clk 0:02:57.4]}
4. O-O {[%clk 0:02:59.5]} 4... Ng6 {[%clk 0:02:57.8]} 5. d4 {[%clk 0:02:53.4]}
5... exd4 {[%clk 0:02:46.1]} 6. Nxd4 {[%clk 0:02:52.7]} 6... Bc5 {[%clk
0:02:45.9]} 7. Nf5 {[%clk 0:02:39.5]} 7... O-O {[%clk 0:02:43.1]} 8. Nc3 {[%clk
0:02:39.2]} 8... d6 {[%clk 0:02:36.8]} 9. Nd5 {[%clk 0:02:30.9]} 9... Nce7
{[%clk 0:02:27]} 10. Nfxe7+ {[%clk 0:01:48.5]} 10... Nxe7 {[%clk 0:02:26]} 11.
Bd3 {[%clk 0:01:44.4]} 11... c6 {[%clk 0:02:23.5]} 12. Nf4 {[%clk 0:01:36.7]}
12... Ng6 {[%clk 0:02:20.4]} 13. Nxg6 {[%clk 0:01:33.1]} 13... hxg6 {[%clk
0:02:10.1]} 14. Qf3 {[%clk 0:01:23.7]} 14... Be6 {[%clk 0:02:09.6]} 15. Bf4
{[%clk 0:01:19.3]} 15... Qf6 {[%clk 0:01:58]} 16. b3 {[%clk 0:00:55.2]} 16... g5
{[%clk 0:01:52.7]} 17. Be3 {[%clk 0:00:54.3]} 17... Qxf3 {[%clk 0:01:52.4]} 18.
gxf3 {[%clk 0:00:56.2]} 18... b5 {[%clk 0:01:42.7]} 19. Bxg5 {[%clk 0:00:54.6]}
19... Bh3 {[%clk 0:01:41.5]} 20. Rfe1 {[%clk 0:00:54.4]} 20... Bd4 {[%clk
0:01:39.7]} 21. Rad1 {[%clk 0:00:52.2]} 21... f6 {[%clk 0:01:35.5]} 22. Be3
{[%clk 0:00:50.5]} 22... Bc3 {[%clk 0:01:35.1]} 23. Bd2 {[%clk 0:00:47.2]} 23...
Bd4 {[%clk 0:01:31.2]} 24. c3 {[%clk 0:00:43.6]} 24... Bc5 {[%clk 0:01:23.9]}
25. Bf4 {[%clk 0:00:43.9]} 25... g5 {[%clk 0:01:17.1]} 26. Bg3 {[%clk
0:00:44.1]} 26... Kg7 {[%clk 0:01:13.8]} 27. b4 {[%clk 0:00:43.2]} 27... Bb6
{[%clk 0:01:12.3]} 28. Bxd6 {[%clk 0:00:44.3]} 28... Rfd8 {[%clk 0:01:09.7]} 29.
e5 {[%clk 0:00:42.8]} 29... f5 {[%clk 0:01:01.3]} 30. Bc2 {[%clk 0:00:33.7]}
30... g4 {[%clk 0:00:53.1]} 31. Bxf5 {[%clk 0:00:33.8]} 31... g3 {[%clk
0:00:54.1]} 32. Bxh3 {[%clk 0:00:29.3]} 32... gxf2+ {[%clk 0:00:54.8]} 33. Kf1
{[%clk 0:00:27.4]} 33... fxe1=Q+ {[%clk 0:00:54.2]} 34. Rxe1 {[%clk 0:00:28.5]}
34... Rh8 {[%clk 0:00:53.7]} 35. Kg2 {[%clk 0:00:28.5]} 35... Rae8 {[%clk
0:00:40.7]} 36. f4 {[%clk 0:00:26.5]} 36... Rh6 {[%clk 0:00:35.5]} 37. e6 {[%clk
0:00:19.6]} 37... Rg6+ {[%clk 0:00:32.8]} 38. Kf3 {[%clk 0:00:20.1]} 38... Bd8
{[%clk 0:00:19.9]} 39. Bg4 {[%clk 0:00:18.4]} 39... Be7 {[%clk 0:00:18.2]} 40.
Be5+ {[%clk 0:00:18.2]} 40... Bf6 {[%clk 0:00:17.6]} 41. f5 {[%clk 0:00:16.8]}
41... Rh6 {[%clk 0:00:15.9]} 42. Bf4 {[%clk 0:00:14.9]} 42... Rhh8 {[%clk
0:00:15.1]} 43. Rd1 {[%clk 0:00:14]} 43... Rd8 {[%clk 0:00:15.7]} 44. Rg1 {[%clk
0:00:11.1]} 44... Kf8 {[%clk 0:00:06.9]} 45. Ke4 {[%clk 0:00:10.8]} 45... Ke7
{[%clk 0:00:07.4]} 46. Be3 {[%clk 0:00:07.7]} 46... Rh4 {[%clk 0:00:07.6]} 47.
Bc5+ {[%clk 0:00:07.6]} 47... Rd6 {[%clk 0:00:05.1]} 48. h3 {[%clk 0:00:06.8]}
48... Rh7 {[%clk 0:00:03.8]} 49. Rd1 {[%clk 0:00:07.7]} 49... Be5 {[%clk
0:00:02.9]} 50. Kxe5 {[%clk 0:00:08.1]} 50... Rxh3 {[%clk 0:00:02.5]} 51. Bxd6+
{[%clk 0:00:09]} 51... Kd8 {[%clk 0:00:03.4]} 52. Bxh3 {[%clk 0:00:10.9]} 52...
Ke8 {[%clk 0:00:04.7]} 53. Rg1 {[%clk 0:00:11.3]} 53... Kd8 {[%clk 0:00:02]} 54.
Rg8# {[%clk 0:00:11.7]} 1-0

[Event "*** Titled Tuesday Blitz"]
[Site "Chess.com"]
[Date "2018.01.02"]
[Round "6"]
[White "Abrito99"]
[Black "jbj"]
[Result "1-0"]
[WhiteElo "2369"]
[BlackElo "2275"]
[TimeControl "180+2"]
[EndTime "14:21:33 PST"]
[Termination "Abrito99 won by resignation"]

1. e4 {[%clk 0:03:01.9]} 1... d6 {[%clk 0:03:00.5]} 2. d4 {[%clk 0:03:02.3]}
2... Nf6 {[%clk 0:03:01.8]} 3. Nc3 {[%clk 0:03:02.5]} 3... e5 {[%clk 0:03:02.9]}
4. Nf3 {[%clk 0:02:57]} 4... Nbd7 {[%clk 0:03:03.9]} 5. h3 {[%clk 0:02:54.6]}
5... Be7 {[%clk 0:03:03.1]} 6. Bc4 {[%clk 0:02:55.7]} 6... O-O {[%clk 0:03:04]}
7. Be3 {[%clk 0:02:57.2]} 7... a6 {[%clk 0:03:04.8]} 8. a4 {[%clk 0:02:57.6]}
8... b6 {[%clk 0:03:06.1]} 9. O-O {[%clk 0:02:52.2]} 9... Bb7 {[%clk 0:03:07.3]}
10. Qd3 {[%clk 0:02:34.7]} 10... c6 {[%clk 0:03:07.1]} 11. Bb3 {[%clk
0:02:20.8]} 11... b5 {[%clk 0:02:59.6]} 12. Rfd1 {[%clk 0:02:07.6]} 12... Qc7
{[%clk 0:02:49.5]} 13. d5 {[%clk 0:01:40.6]} 13... cxd5 {[%clk 0:02:30.2]} 14.
Nxd5 {[%clk 0:01:31.1]} 14... Nxd5 {[%clk 0:02:27.7]} 15. Bxd5 {[%clk
0:01:30.4]} 15... Bxd5 {[%clk 0:02:27.8]} 16. Qxd5 {[%clk 0:01:22]} 16... bxa4
{[%clk 0:02:09.8]} 17. c3 {[%clk 0:01:10.6]} 17... Rab8 {[%clk 0:01:58.6]} 18.
Rd2 {[%clk 0:01:05.6]} 18... Rb5 {[%clk 0:01:54.3]} 19. Qd3 {[%clk 0:01:05.8]}
19... Rfb8 {[%clk 0:01:52.3]} 20. Qe2 {[%clk 0:01:00.9]} 20... Qc6 {[%clk
0:01:27.5]} 21. Rxa4 {[%clk 0:00:56.1]} 21... Rxb2 {[%clk 0:01:28]} 22. Rxa6
{[%clk 0:00:56.5]} 22... Rxd2 {[%clk 0:01:23]} 23. Bxd2 {[%clk 0:00:54.6]} 23...
Qb7 {[%clk 0:01:20.5]} 24. Be3 {[%clk 0:00:33.7]} 24... Qxe4 {[%clk 0:01:18.2]}
25. Ra7 {[%clk 0:00:34.8]} 25... Rb7 {[%clk 0:01:02.6]} 26. Ra8+ {[%clk
0:00:31.6]} 26... Nf8 {[%clk 0:00:59.7]} 27. Qa6 {[%clk 0:00:30.2]} 27... Rb1+
{[%clk 0:00:52.9]} 28. Kh2 {[%clk 0:00:30.8]} 28... Qb7 {[%clk 0:00:53.6]} 29.
Qa2 {[%clk 0:00:29.6]} 29... Rb2 {[%clk 0:00:50.9]} 30. Qa4 {[%clk 0:00:29.9]}
30... Qb5 {[%clk 0:00:43.8]} 31. Qa7 {[%clk 0:00:28.5]} 31... Qb7 {[%clk
0:00:39.3]} 32. Qa4 {[%clk 0:00:29.8]} 32... h6 {[%clk 0:00:31.8]} 33. Qe8
{[%clk 0:00:26.8]} 33... Kh7 {[%clk 0:00:22.2]} 34. Ra7 {[%clk 0:00:27.8]} 34...
Kg6 {[%clk 0:00:09.8]} 35. Rxb7 {[%clk 0:00:27.2]} 35... Rxb7 {[%clk 0:00:11.7]}
36. Qc8 {[%clk 0:00:25.6]} 36... Rd7 {[%clk 0:00:09.5]} 37. c4 {[%clk
0:00:24.1]} 37... f5 {[%clk 0:00:09.4]} 38. c5 {[%clk 0:00:25.2]} 38... f4
{[%clk 0:00:09]} 39. c6 {[%clk 0:00:25.1]} 39... Rd8 {[%clk 0:00:08.4]} 40. Qg4+
{[%clk 0:00:24.3]} 40... Kf7 {[%clk 0:00:09.5]} 41. c7 {[%clk 0:00:25.1]} 41...
fxe3 {[%clk 0:00:10.5]} 42. cxd8=Q {[%clk 0:00:25.1]} 42... Bxd8 {[%clk
0:00:12.4]} 43. fxe3 {[%clk 0:00:25.3]} 43... Bf6 {[%clk 0:00:14.3]} 44. Qf5
{[%clk 0:00:25.8]} 44... Ke7 {[%clk 0:00:14.8]} 45. Nd2 {[%clk 0:00:25.4]} 45...
Ne6 {[%clk 0:00:16]} 46. Ne4 {[%clk 0:00:26.1]} 46... Ng5 {[%clk 0:00:16.8]} 47.
Nxf6 {[%clk 0:00:25.6]} 47... gxf6 {[%clk 0:00:18.7]} 48. Qg6 {[%clk 0:00:26.7]}
48... Nf7 {[%clk 0:00:19.9]} 49. Qg8 {[%clk 0:00:24.3]} 49... d5 {[%clk
0:00:19.5]} 50. Qa8 {[%clk 0:00:24.9]} 50... Ke6 {[%clk 0:00:19.9]} 51. Qc8+
{[%clk 0:00:26.2]} 51... Ke7 {[%clk 0:00:20.7]} 52. Kg3 {[%clk 0:00:27.8]} 52...
Nd6 {[%clk 0:00:21.3]} 53. Qc6 {[%clk 0:00:25.7]} 53... Nf5+ {[%clk 0:00:20]}
54. Kf2 {[%clk 0:00:26.2]} 54... d4 {[%clk 0:00:20.3]} 55. Qc7+ {[%clk
0:00:23.2]} 55... Ke6 {[%clk 0:00:21.1]} 56. Qc8+ {[%clk 0:00:24.3]} 56... Ke7
{[%clk 0:00:22.3]} 57. Qxf5 {[%clk 0:00:25.9]} 57... dxe3+ {[%clk 0:00:24.2]}
58. Kxe3 {[%clk 0:00:26.6]} 1-0